fUSD/lending_fUSD_20260617
["ID","MTS","AMOUNT","RATE_DAILY","PERIOD"]
[425347025,1781707832000,-151.0,0.00015,2]
[425347016,1781707832000,-309.0,0.00015,2]
[425347022,1781707832000,-321.0,0.00015,2]
[425347026,1781707832000,-320.0,0.00015,2]
[425347027,1781707832000,-320.0,0.00015,2]
[425347039,1781707832000,-152.0,0.00015,2]
[425347055,1781707832000,-151.0,0.00015,2]
[425347084,1781707832000,-151.0,0.00015,2]
[425347066,1781707832000,-150.0,0.00015,2]
[425347094,1781707832000,-314.0,0.00016278,2]
[425347098,1781707832000,-316.0,0.00016279,2]
[425347091,1781707832000,-189.47565558,0.00016278,2]
[425347097,1781707832000,-311.0,0.00016279,2]
[425347101,1781707832000,-318.0,0.00016279,2]
[425347102,1781707832000,-151.0,0.00016279,2]
[425347096,1781707832000,-314.0,0.00016278,2]
[425347103,1781707832000,-321.0,0.00016279,2]
[425347105,1781707832000,-150.0,0.00016279,2]
[425347104,1781707832000,-310.0,0.00016279,2]
[425347113,1781707832000,-500.0,0.00016438,2]
[425347109,1781707832000,-152.0,0.00016279,2]
[425347107,1781707832000,-318.0,0.00016279,2]
[425347111,1781707832000,-500.0,0.00016438,2]
[425347112,1781707832000,-500.0,0.00016438,2]
[425347110,1781707832000,-316.0,0.00016279,2]
[425347106,1781707832000,-313.0,0.00016279,2]
[425347108,1781707832000,-309.0,0.00016279,2]
[425347115,1781707832000,-1500.0,0.00018712,2]
[425347093,1781707832000,-317.0,0.00016278,2]
[425347099,1781707832000,-151.0,0.00016279,2]
[425347062,1781707832000,-150.0,0.00015,2]
[425347092,1781707832000,-129.52434442,0.00016278,2]
[425347095,1781707832000,-151.0,0.00016278,2]
[425347067,1781707832000,-151.0,0.00015,2]
[425347064,1781707832000,-150.0,0.00015,2]
[425347065,1781707832000,-151.0,0.00015,2]
[425347072,1781707832000,-152.0,0.00015,2]
[425347068,1781707832000,-150.0,0.00015,2]
[425347058,1781707832000,-151.0,0.00015,2]
[425347060,1781707832000,-151.0,0.00015,2]
[425347076,1781707832000,-4.73724387,0.00015,2]
[425347074,1781707832000,-148.26275613,0.00015,2]
[425347069,1781707832000,-151.0,0.00015,2]
[425347082,1781707832000,-153.0,0.00015,2]
[425347080,1781707832000,-151.0,0.00015,2]
[425347114,1781707832000,-342.89892342,0.00016438,2]
[425347086,1781707832000,-160.0,0.0001502,2]
[425347089,1781707832000,-235.33518189,0.00016278,2]
[425347090,1781707832000,-150.0,0.00016278,2]
[425347088,1781707832000,-76.66481811,0.00016278,2]
[425347087,1781707832000,-216.17170803,0.00015021,2]
[425347100,1781707832000,-318.0,0.00016279,2]
[425347078,1781707832000,-151.0,0.00015,2]
[425347149,1781707833000,-151.0,0.00022,2]
[425347160,1781707833000,-176.66,0.00023367,2]
[425347150,1781707833000,-151.0,0.00022,2]
[425347148,1781707833000,-151.0,0.00022,2]
[425347138,1781707833000,-151.0,0.00022,2]
[425347144,1781707833000,-151.0,0.00022,2]
[425347143,1781707833000,-151.0,0.00022,2]
[425347145,1781707833000,-151.0,0.00022,2]
[425347151,1781707833000,-166.66,0.00022198,30]
[425347147,1781707833000,-151.0,0.00022,2]
[425347152,1781707833000,-166.66,0.00022666,30]
[425347166,1781707833000,-299.99,0.00023368,7]
[425347154,1781707833000,-266.0,0.00023,2]
[425347155,1781707833000,-265.0,0.00023,2]
[425347156,1781707833000,-166.66,0.00023133,30]
[425347157,1781707833000,-177.0540663,0.0002325,2]
[425347159,1781707833000,-5000.0,0.00023367,2]
[425347158,1781707833000,-26671.1488,0.00023267,2]
[425347161,1781707833000,-197.38,0.00023367,2]
[425347163,1781707833000,-337.14,0.00023367,2]
[425347162,1781707833000,-35423.42,0.00023367,2]
[425347139,1781707833000,-151.0,0.00022,2]
[425347153,1781707833000,-169.0,0.00023,2]
[425347140,1781707833000,-151.0,0.00022,2]
[425347127,1781707833000,-4044.24726451,0.00021273,2]
[425347141,1781707833000,-151.0,0.00022,2]
[425347117,1781707833000,-1613.0535,0.00019808,2]
[425347116,1781707833000,-1555.5,0.0001926,2]
[425347125,1781707833000,-266.0,0.00021,2]
[425347118,1781707833000,-151.0,0.0002,2]
[425347121,1781707833000,-266.0,0.0002,2]
[425347120,1781707833000,-165.326255,0.0002,2]
[425347124,1781707833000,-157.0,0.00021,2]
[425347119,1781707833000,-157.0,0.0002,2]
[425347122,1781707833000,-265.0,0.0002,2]
[425347123,1781707833000,-152.0,0.00021,2]
[425347142,1781707833000,-151.0,0.00022,2]
[425347126,1781707833000,-265.0,0.00021,2]
[425347129,1781707833000,-458.44747329,0.00021273,2]
[425347165,1781707833000,-9999.99,0.00023368,2]
[425347131,1781707833000,-388.8323745,0.00021273,2]
[425347128,1781707833000,-1640.68615507,0.00021273,2]
[425347133,1781707833000,-157.0,0.00022,2]
[425347132,1781707833000,-134.39720727,0.00021273,2]
[425347135,1781707833000,-266.0,0.00022,2]
[425347134,1781707833000,-194.0,0.00022,2]
[425347136,1781707833000,-265.0,0.00022,2]
[425347137,1781707833000,-151.0,0.00022,2]
[425347130,1781707833000,-587.38952536,0.00021273,2]
[425347164,1781707833000,-5991.25,0.00023368,2]
[425347146,1781707833000,-151.0,0.00022,2]
[425347169,1781707833000,-19955.72,0.00023368,2]
[425347202,1781707833000,-1715.19234593,0.00027953,2]
[425347196,1781707833000,-1500.0,0.00027397,2]
[425347197,1781707833000,-332.67284143,0.00027397,2]
[425347198,1781707833000,-12647.65,0.00027397,10]
[425347204,1781707833000,-174.61919141,0.00028191,2]
[425347200,1781707833000,-200.0,0.00027478,2]
[425347205,1781707833000,-500.0,0.00028191,2]
[425347199,1781707833000,-10539.71,0.00027397,10]
[425347201,1781707833000,-500.0,0.000275,7]
[425347203,1781707833000,-500.0,0.00028033,2]
[425347218,1781707833000,-158.569269,0.00028268,7]
[425347217,1781707833000,-168.40984768,0.00028268,7]
[425347207,1781707833000,-578.20924308,0.00028191,2]
[425347216,1781707833000,-174.65274356,0.00028268,7]
[425347209,1781707833000,-646.65982734,0.00028191,2]
[425347208,1781707833000,-500.0,0.00028191,2]
[425347214,1781707833000,-151.0,0.00028246,2]
[425347212,1781707833000,-151.0,0.00028191,2]
[425347210,1781707833000,-500.0,0.00028191,2]
[425347213,1781707833000,-200.0,0.00028236,2]
[425347215,1781707833000,-194.50132253,0.00028268,7]
[425347211,1781707833000,-151.0,0.00028191,2]
[425347167,1781707833000,-9999.99,0.00023368,2]
[425347195,1781707833000,-1715.19234598,0.00027297,2]
[425347194,1781707833000,-500.0,0.00027137,2]
[425347206,1781707833000,-500.0,0.00028191,2]
[425347192,1781707833000,-200.0,0.0002672,2]
[425347171,1781707833000,-266.0,0.00024,2]
[425347193,1781707833000,-188.99137122,0.00026988,7]
[425347168,1781707833000,-9999.99,0.00023368,2]
[425347170,1781707833000,-166.66,0.000236,30]
[425347173,1781707833000,-166.66,0.00024068,30]
[425347172,1781707833000,-265.0,0.00024,2]
[425347183,1781707833000,-271.0,0.00025,2]
[425347175,1781707833000,-150.99,0.00024174,2]
[425347177,1781707833000,-200.0,0.00024445,2]
[425347174,1781707833000,-14553.21,0.00024174,2]
[425347178,1781707833000,-166.66,0.00024535,30]
[425347176,1781707833000,-9999.99,0.00024174,2]
[425347179,1781707833000,-1000.0,0.00024658,2]
[425347188,1781707833000,-7254.0,0.00025786,2]
[425347182,1781707833000,-277.0,0.00025,2]
[425347181,1781707833000,-215.69,0.00024658,2]
[425347184,1781707833000,-200.0,0.00025204,2]
[425347186,1781707833000,-449.0,0.00025671,2]
[425347190,1781707833000,-2976.0049,0.00026534,2]
[425347187,1781707833000,-453.0,0.00025671,2]
[425347185,1781707833000,-445.0,0.00025671,2]
[425347191,1781707833000,-236.75,0.00026687,2]
[425347189,1781707833000,-200.0,0.00025962,2]
[425347180,1781707833000,-215.65,0.00024658,2]
[425347262,1781707834000,-332.67284143,0.00028766,2]
[425347253,1781707834000,-151.33,0.00028696,30]
[425347266,1781707834000,-151.36,0.00028797,30]
[425347265,1781707834000,-773.21,0.00028797,7]
[425347263,1781707834000,-151.33,0.00028797,30]
[425347261,1781707834000,-151.36,0.00028763,7]
[425347252,1781707834000,-151.36,0.00028663,7]
[425347255,1781707834000,-151.33,0.0002873,2]
[425347243,1781707834000,-439.93,0.0002863,30]
[425347250,1781707834000,-452.0,0.0002863,2]
[425347264,1781707834000,-439.93,0.00028797,7]
[425347254,1781707834000,-151.36,0.00028696,30]
[425347258,1781707834000,-151.0,0.00028739,2]
[425347275,1781707834000,-152.05845054,0.0002888,2]
[425347257,1781707834000,-181.0801015,0.00028739,2]
[425347259,1781707834000,-350.0,0.00028743,2]
[425347260,1781707834000,-151.33,0.00028763,7]
[425347267,1781707834000,-441.82,0.00028797,7]
[425347270,1781707834000,-151.33,0.0002883,2]
[425347269,1781707834000,-2500.0,0.000288,2]
[425347272,1781707834000,-460.70966588,0.00028855,2]
[425347271,1781707834000,-151.36,0.0002883,2]
[425347273,1781707834000,-151.33,0.00028864,7]
[425347277,1781707834000,-428.99143634,0.0002888,2]
[425347249,1781707834000,-157.03,0.0002863,30]
[425347276,1781707834000,-1642.0703,0.0002888,2]
[425347256,1781707834000,-151.36,0.0002873,2]
[425347251,1781707834000,-151.33,0.00028663,7]
[425347223,1781707834000,-178.38249235,0.00028268,7]
[425347245,1781707834000,-773.21,0.0002863,30]
[425347268,1781707834000,-771.16,0.00028797,7]
[425347219,1781707834000,-170.97152392,0.00028268,7]
[425347220,1781707834000,-179.25431789,0.00028268,2]
[425347226,1781707834000,-155.01634785,0.00028268,7]
[425347227,1781707834000,-175.23480973,0.00028268,7]
[425347228,1781707834000,-174.39273975,0.00028268,7]
[425347221,1781707834000,-377.98274244,0.00028268,7]
[425347222,1781707834000,-156.1685631,0.00028268,7]
[425347230,1781707834000,-183.68765147,0.00028268,7]
[425347224,1781707834000,-184.00703696,0.00028268,7]
[425347225,1781707834000,-182.67224707,0.00028268,7]
[425347229,1781707834000,-182.31695288,0.00028268,7]
[425347248,1781707834000,-771.16,0.0002863,30]
[425347232,1781707834000,-183.60445289,0.00028268,7]
[425347234,1781707834000,-151.0,0.00028301,2]
[425347233,1781707834000,-194.92010719,0.00028268,7]
[425347239,1781707834000,-2000.0,0.000285,2]
[425347236,1781707834000,-55.72768964,0.00028356,2]
[425347237,1781707834000,-151.0,0.00028411,2]
[425347241,1781707834000,-563.45356131,0.00028609,2]
[425347235,1781707834000,-95.27231036,0.00028356,2]
[425347238,1781707834000,-151.0,0.00028466,2]
[425347242,1781707834000,-151.33,0.0002863,2]
[425347244,1781707834000,-157.02,0.0002863,30]
[425347247,1781707834000,-441.82,0.0002863,30]
[425347246,1781707834000,-151.36,0.0002863,2]
[425347231,1781707834000,-183.0911452,0.00028268,7]
[425347274,1781707834000,-151.36,0.00028864,7]
[425347240,1781707834000,-1151.73878462,0.00028609,2]
[425347279,1781707834000,-151.36,0.00028897,30]
[425347305,1781707834000,-153.0,0.00028955,30]
[425347308,1781707834000,-151.33,0.00028964,7]
[425347304,1781707834000,-153.0,0.00028955,30]
[425347314,1781707834000,-221.85059141,0.0002897,2]
[425347315,1781707834000,-330.1597687,0.00028973,7]
[425347319,1781707834000,-5566.6591879,0.00028974,2]
[425347320,1781707834000,-55889.72815,0.00028974,2]
[425347322,1781707834000,-500.0,0.00028979,7]
[425347323,1781707834000,-500.0,0.00028979,7]
[425347321,1781707834000,-500.0,0.00028979,2]
[425347324,1781707834000,-500.0,0.00028979,7]
[425347325,1781707834000,-500.0,0.00028979,7]
[425347306,1781707834000,-226073.1062017,0.00028955,2]
[425347318,1781707834000,-206673.5074229,0.00028974,2]
[425347317,1781707834000,-4692.1250369,0.00028974,2]
[425347327,1781707834000,-709.79,0.00028979,7]
[425347326,1781707834000,-167.80495283,0.00028979,7]
[425347334,1781707834000,-500.0,0.00028979,2]
[425347332,1781707834000,-500.0,0.00028979,2]
[425347333,1781707834000,-500.0,0.00028979,2]
[425347329,1781707834000,-1243.35,0.00028979,7]
[425347336,1781707834000,-500.0,0.00028979,2]
[425347328,1781707834000,-815.23,0.00028979,7]
[425347330,1781707834000,-4000.0,0.00028979,3]
[425347335,1781707834000,-500.0,0.00028979,2]
[425347278,1781707834000,-151.33,0.00028897,30]
[425347316,1781707834000,-500.0,0.00028973,2]
[425347307,1781707834000,-6889.4100312,0.00028955,2]
[425347331,1781707834000,-500.0,0.00028979,2]
[425347313,1781707834000,-771.16,0.00028964,2]
[425347280,1781707834000,-500.0,0.00028899,2]
[425347290,1781707834000,-157.03,0.00028931,7]
[425347283,1781707834000,-13537.24219004,0.000289,2]
[425347288,1781707834000,-157.02,0.00028931,7]
[425347289,1781707834000,-151.36,0.00028931,2]
[425347281,1781707834000,-500.0,0.00028899,7]
[425347310,1781707834000,-773.21,0.00028964,2]
[425347285,1781707834000,-200.0,0.000289,2]
[425347287,1781707834000,-151.33,0.00028931,2]
[425347284,1781707834000,-42387.63780996,0.000289,2]
[425347286,1781707834000,-500.0,0.00028929,3]
[425347291,1781707834000,-500.0,0.0002895,2]
[425347292,1781707834000,-1119.4602779,0.00028953,2]
[425347296,1781707834000,-151.0,0.00028955,30]
[425347282,1781707834000,-500.0,0.00028899,2]
[425347293,1781707834000,-156.0,0.00028954,30]
[425347299,1781707834000,-157.0,0.00028955,30]
[425347301,1781707834000,-151.0,0.00028955,30]
[425347297,1781707834000,-153.0,0.00028955,30]
[425347294,1781707834000,-155.0,0.00028955,30]
[425347300,1781707834000,-152.0,0.00028955,30]
[425347312,1781707834000,-441.82,0.00028964,2]
[425347295,1781707834000,-153.0,0.00028955,30]
[425347302,1781707834000,-266.0,0.00028955,30]
[425347303,1781707834000,-265.0,0.00028955,30]
[425347309,1781707834000,-439.93,0.00028964,2]
[425347311,1781707834000,-151.36,0.00028964,7]
[425347298,1781707834000,-157.0,0.00028955,30]
[425347337,1781707835000,-3698.98586155,0.0002898,7]
[425347338,1781707835000,-58819.44865497,0.0002898,7]
[425347340,1781707835000,-4211.9543992,0.0002898,7]
[425347339,1781707835000,-3453.78429858,0.0002898,7]
[425347358,1781707839000,-200.0,0.0002898,2]
[425347349,1781707839000,-157.02,0.0002863,30]
[425347348,1781707839000,-770.55,0.0002863,30]
[425347350,1781707839000,-440.62,0.0002863,30]
[425347351,1781707839000,-770.55,0.00028797,7]
[425347356,1781707839000,-2544.84800001,0.0002898,7]
[425347359,1781707839000,-2037.326,0.00028987,21]
[425347352,1781707839000,-440.62,0.00028797,7]
[425347353,1781707839000,-157.02,0.00028931,7]
[425347354,1781707839000,-440.62,0.00028964,2]
[425347357,1781707839000,-1313194.35641271,0.0002898,7]
[425347355,1781707839000,-770.55,0.00028964,2]
[425347361,1781707839000,-200.0,0.00028995,2]
[425347360,1781707839000,-190.272,0.00028987,21]
[425347363,1781707839000,-151.36,0.00028998,30]
[425347372,1781707839000,-151.36,0.00029031,2]
[425347362,1781707839000,-151.33,0.00028998,30]
[425347374,1781707839000,-151.36,0.00029065,7]
[425347375,1781707839000,-151.33,0.00029098,30]
[425347371,1781707839000,-151.33,0.00029031,2]
[425347368,1781707839000,-191.80540898,0.00029,2]
[425347373,1781707839000,-151.33,0.00029065,7]
[425347369,1781707839000,-250.01993717,0.00029,2]
[425347366,1781707839000,-1161.92,0.00029,7]
[425347367,1781707839000,-1000.0,0.00029,2]
[425347365,1781707839000,-517.02795585,0.00029,2]
[425347364,1781707839000,-1527.91,0.00029,7]
[425347370,1781707839000,-1000.0,0.00029,2]
[425347415,1781707840000,-230.68835716,0.00029131,7]
[425347414,1781707840000,-213.15490276,0.00029131,7]
[425347410,1781707840000,-219.40493583,0.00029131,7]
[425347411,1781707840000,-236.16929309,0.00029131,7]
[425347409,1781707840000,-236.01949039,0.00029131,7]
[425347404,1781707840000,-212.12571429,0.00029131,7]
[425347408,1781707840000,-281.77367428,0.00029131,7]
[425347406,1781707840000,-214.85452329,0.00029131,7]
[425347416,1781707840000,-214.25531322,0.00029131,7]
[425347413,1781707840000,-220.8749091,0.00029131,7]
[425347424,1781707840000,-213.87711138,0.00029131,5]
[425347423,1781707840000,-232.01294771,0.00029131,7]
[425347421,1781707840000,-225.47550499,0.00029131,7]
[425347419,1781707840000,-233.0234632,0.00029131,7]
[425347422,1781707840000,-202.69981592,0.00029131,7]
[425347425,1781707840000,-216.68686267,0.00029131,7]
[425347405,1781707840000,-226.89422678,0.00029131,7]
[425347426,1781707840000,-217.74934537,0.00029131,7]
[425347427,1781707840000,-214.65472088,0.00029131,7]
[425347420,1781707840000,-245.6203648,0.00029131,7]
[425347429,1781707840000,-165.71292312,0.00029131,7]
[425347433,1781707840000,-225.79632064,0.00029131,7]
[425347434,1781707840000,-249.41930434,0.00029131,2]
[425347437,1781707840000,-194.47476297,0.00029131,7]
[425347418,1781707840000,-249.22485625,0.00029131,7]
[425347407,1781707840000,-228.60821958,0.00029131,7]
[425347394,1781707840000,-310.03269569,0.00029121,7]
[425347400,1781707840000,-367.20890579,0.00029121,7]
[425347439,1781707840000,-218.69658761,0.00029131,7]
[425347378,1781707840000,-3922.81,0.000291,2]
[425347382,1781707840000,-223.6794415,0.0002912,7]
[425347377,1781707840000,-151.36,0.00029098,30]
[425347379,1781707840000,-3922.81,0.000291,2]
[425347381,1781707840000,-406.37731511,0.0002912,7]
[425347380,1781707840000,-405.0,0.00029102,2]
[425347384,1781707840000,-349.30548712,0.00029121,7]
[425347392,1781707840000,-368.01407391,0.00029121,7]
[425347383,1781707840000,-389.00264507,0.00029121,7]
[425347387,1781707840000,-341.94304783,0.00029121,7]
[425347386,1781707840000,-317.138538,0.00029121,7]
[425347412,1781707840000,-223.34662081,0.00029131,7]
[425347385,1781707840000,-336.81969535,0.00029121,7]
[425347390,1781707840000,-312.33712619,0.00029121,7]
[425347391,1781707840000,-356.7649847,0.00029121,7]
[425347389,1781707840000,-566.97411366,0.00029121,7]
[425347393,1781707840000,-365.34449414,0.00029121,7]
[425347396,1781707840000,-348.78547949,0.00029121,7]
[425347395,1781707840000,-350.46961946,0.00029121,7]
[425347399,1781707840000,-366.1822904,0.00029121,7]
[425347402,1781707840000,-300.0,0.0002913,20]
[425347397,1781707840000,-364.63390576,0.00029121,7]
[425347403,1781707840000,-210.49571628,0.00029131,7]
[425347401,1781707840000,-389.84021439,0.00029121,7]
[425347398,1781707840000,-367.37530294,0.00029121,7]
[425347388,1781707840000,-358.50863578,0.00029121,2]
[425347431,1781707840000,-226.39764101,0.00029131,2]
[425347448,1781707840000,-231.56361806,0.00029131,7]
[425347445,1781707840000,-150.39539877,0.00029131,7]
[425347473,1781707840000,-151.33,0.00029199,30]
[425347471,1781707840000,-151.33,0.00029165,7]
[425347475,1781707840000,-152.0,0.0002922,7]
[425347476,1781707840000,-151.5,0.00029232,2]
[425347478,1781707840000,-151.39,0.00029232,2]
[425347474,1781707840000,-151.36,0.00029199,30]
[425347479,1781707840000,-350.0,0.00029233,13]
[425347480,1781707840000,-250.0,0.00029233,13]
[425347477,1781707840000,-157.02,0.00029232,2]
[425347481,1781707840000,-250.0,0.00029233,13]
[425347488,1781707840000,-2000.0,0.000293,2]
[425347484,1781707840000,-1715.19234593,0.00029265,2]
[425347489,1781707840000,-152.0,0.00029323,30]
[425347491,1781707840000,-157.02,0.00029534,30]
[425347483,1781707840000,-152.0,0.00029244,30]
[425347490,1781707840000,-460.70966587,0.00029476,2]
[425347485,1781707840000,-161.98035939,0.00029287,2]
[425347487,1781707840000,-771.16,0.00029299,7]
[425347486,1781707840000,-441.82,0.00029299,7]
[425347492,1781707840000,-150.0,0.00029534,2]
[425347494,1781707840000,-447.35888299,0.00029689,7]
[425347493,1781707840000,-203.18865755,0.00029689,7]
[425347496,1781707840000,-523.95823068,0.00029689,7]
[425347495,1781707840000,-583.5039676,0.00029689,7]
[425347441,1781707840000,-225.43118096,0.00029131,2]
[425347472,1781707840000,-151.36,0.00029165,7]
[425347462,1781707840000,-224.48894714,0.00029131,7]
[425347482,1781707840000,-152.0,0.00029235,7]
[425347464,1781707840000,-193.2779557,0.00029131,7]
[425347463,1781707840000,-168.11189665,0.00029131,7]
[425347440,1781707840000,-236.39581071,0.00029131,5]
[425347444,1781707840000,-234.21723798,0.00029131,7]
[425347442,1781707840000,-206.49069534,0.00029131,7]
[425347457,1781707840000,-236.10882355,0.00029131,7]
[425347456,1781707840000,-202.33211592,0.00029131,7]
[425347455,1781707840000,-249.52945176,0.00029131,7]
[425347446,1781707840000,-203.95916624,0.00029131,7]
[425347447,1781707840000,-247.29295381,0.00029131,7]
[425347453,1781707840000,-218.32322346,0.00029131,7]
[425347449,1781707840000,-175.04625116,0.00029131,7]
[425347451,1781707840000,-253.35791119,0.00029131,7]
[425347450,1781707840000,-255.82508754,0.00029131,7]
[425347443,1781707840000,-223.18085528,0.00029131,7]
[425347452,1781707840000,-168.35468488,0.00029131,7]
[425347454,1781707840000,-220.49200538,0.00029131,7]
[425347460,1781707840000,-218.10456732,0.00029131,7]
[425347469,1781707840000,-440.62,0.00029132,30]
[425347468,1781707840000,-771.16,0.00029132,30]
[425347470,1781707840000,-770.55,0.00029132,30]
[425347466,1781707840000,-151.36,0.00029132,2]
[425347465,1781707840000,-151.33,0.00029132,2]
[425347459,1781707840000,-205.66495131,0.00029131,2]
[425347461,1781707840000,-202.62900276,0.00029131,7]
[425347458,1781707840000,-235.50510015,0.00029131,7]
[425347467,1781707840000,-441.82,0.00029132,30]
[425347527,1781707841000,-446.69324162,0.000297,7]
[425347528,1781707841000,-472.33858618,0.000297,7]
[425347530,1781707841000,-426.30980553,0.000297,7]
[425347536,1781707841000,-498.44971249,0.000297,7]
[425347526,1781707841000,-229.71518198,0.000297,7]
[425347531,1781707841000,-461.37671432,0.000297,7]
[425347535,1781707841000,-247.21875952,0.000297,7]
[425347533,1781707841000,-428.51062644,0.000297,7]
[425347534,1781707841000,-174.08276585,0.000297,7]
[425347548,1781707841000,-245.70421563,0.000297,7]
[425347532,1781707841000,-427.45002542,0.000297,7]
[425347546,1781707841000,-226.39028697,0.000297,7]
[425347543,1781707841000,-426.66196277,0.000297,7]
[425347539,1781707841000,-450.95100998,0.000297,7]
[425347547,1781707841000,-311.31878383,0.000297,7]
[425347538,1781707841000,-233.97262355,0.000297,7]
[425347537,1781707841000,-466.04692639,0.000297,7]
[425347541,1781707841000,-165.49040856,0.000297,2]
[425347552,1781707841000,-435.49869073,0.000297,7]
[425347544,1781707841000,-377.62593374,0.000297,7]
[425347542,1781707841000,-464.02589543,0.000297,7]
[425347549,1781707841000,-331.42584623,0.000297,7]
[425347551,1781707841000,-433.37372534,0.000297,7]
[425347529,1781707841000,-441.74981821,0.000297,7]
[425347545,1781707841000,-165.64447569,0.000297,7]
[425347525,1781707841000,-438.80987166,0.000297,7]
[425347503,1781707841000,-552.02111087,0.0002969,7]
[425347520,1781707841000,-453.78845357,0.000297,7]
[425347502,1781707841000,-535.14747705,0.00029689,7]
[425347497,1781707841000,-505.22954303,0.00029689,7]
[425347499,1781707841000,-512.91457175,0.00029689,7]
[425347500,1781707841000,-537.76295367,0.00029689,2]
[425347501,1781707841000,-468.50568929,0.00029689,7]
[425347498,1781707841000,-475.707807,0.00029689,7]
[425347504,1781707841000,-548.01674122,0.0002969,7]
[425347507,1781707841000,-755.96548488,0.0002969,7]
[425347506,1781707841000,-525.70442918,0.0002969,7]
[425347505,1781707841000,-465.04904354,0.0002969,7]
[425347513,1781707841000,-584.76032158,0.0002969,7]
[425347512,1781707841000,-550.81335868,0.0002969,7]
[425347508,1781707841000,-523.17821924,0.0002969,7]
[425347511,1781707841000,-549.2734356,0.0002969,7]
[425347509,1781707841000,-546.95085864,0.0002969,7]
[425347514,1781707841000,-151.0,0.00029698,2]
[425347510,1781707841000,-551.0629544,0.0002969,7]
[425347516,1781707841000,-229.21602369,0.000297,7]
[425347515,1781707841000,-230.95331308,0.000297,7]
[425347517,1781707841000,-420.99143257,0.000297,7]
[425347518,1781707841000,-424.25142858,0.000297,7]
[425347524,1781707841000,-472.03898078,0.000297,7]
[425347521,1781707841000,-429.70904658,0.000297,7]
[425347523,1781707841000,-563.54734855,0.000297,7]
[425347519,1781707841000,-418.8938871,0.000297,7]
[425347522,1781707841000,-457.21643915,0.000297,7]
[425347556,1781707841000,-222.28804575,0.000297,7]
[425347540,1781707841000,-405.39963185,0.000297,7]
[425347557,1781707841000,-451.59264128,0.000297,7]
[425347582,1781707841000,-491.24072961,0.000297,7]
[425347593,1781707841000,-472.21764709,0.000297,7]
[425347589,1781707841000,-436.64644692,0.000297,7]
[425347591,1781707841000,-440.98401077,0.000297,7]
[425347587,1781707841000,-156.96589794,0.000297,7]
[425347588,1781707841000,-506.71582238,0.000297,7]
[425347590,1781707841000,-404.66423184,0.000297,7]
[425347584,1781707841000,-300.79079754,0.000297,7]
[425347583,1781707841000,-388.94952594,0.000297,7]
[425347595,1781707841000,-411.32990262,0.000297,2]
[425347600,1781707841000,-237.47866217,0.000297,7]
[425347605,1781707841000,-161.17536081,0.000297,7]
[425347594,1781707841000,-471.01020031,0.000297,7]
[425347602,1781707841000,-265.84282166,0.000297,7]
[425347596,1781707841000,-232.87883147,0.000297,7]
[425347597,1781707841000,-151.22218563,0.000297,7]
[425347599,1781707841000,-336.70936977,0.000297,7]
[425347598,1781707841000,-436.20913464,0.000297,7]
[425347603,1781707841000,-448.97789428,0.000297,7]
[425347601,1781707841000,-405.25800553,0.000297,7]
[425347604,1781707841000,-336.22379329,0.000297,7]
[425347608,1781707841000,-482.34,0.00029706,2]
[425347606,1781707841000,-386.55591139,0.000297,7]
[425347607,1781707841000,-23744.31151175,0.00029703,7]